Cogmind - Beta 11.1 @@@ ROGUE MODE // 2022.05.08 @ 14:55:46 Player: Okkudo Result: Destroyed by X-62 Marksman with Pulse Rifle Performance ------------- Evolutions (2) 1000 Regions Visited (4) 800 Robots Destroyed (32) 160 Value Destroyed (938) 938 Prototype IDs (3) 60 Alien Tech Used (0) 0 Bonus (513) 513 TOTAL SCORE: 3471 Bonus ------- Pacifist 200 High Alert Combat Kills 23 Follower Combat Kills 324 Friendly Fire -34 Cogmind --------- Core Integrity 0/550 Matter 300/300 Energy 100/100 System Corruption 0% Temperature Cool (27) Movement Core (200) Ox3 Location -8/Materials Parts ------- > --- POWER (1) -------- (None) > --- PROPULSION (3) --- (None) > --- UTILITY (5) ------ Medium Storage Unit Visual Processing Unit Improved Signal Interpreter System Shield > --- WEAPON (2) ------- Katana > --- INVENTORY (10) --- Ion Engine Light Nuclear Core Small Storage Unit Improved Signal Interpreter Advanced Terrain Scan Processor Mining Laser Peak State ------------ > --- POWER ------------ Heavy Ion Engine > --- PROPULSION ------- Advanced Treads Advanced Treads Advanced Treads > --- UTILITY ---------- Medium Storage Unit Visual Processing Unit Improved Signal Interpreter Power Shielding Reactive Plating > --- WEAPON ----------- Improved Medium Laser Improved Medium Laser > --- INVENTORY -------- Ion Engine Light Treads Advanced Treads Small Storage Unit EM Pulse Gun Improved EM Shotgun Mining Laser [Rating: 29] Favorites ----------- Power Light Nuclear Core Engine Heavy Ion Engine Power Core Light Nuclear Core Propulsion Light Treads Treads Light Treads Utility Power Shielding Storage Medium Storage Unit Processor Visual Processing Unit Hackware System Shield Protection Power Shielding Weapon Improved Medium Laser Energy Gun Improved Medium Laser Slashing Weapon Katana Build | -11 -10 -10 -9 -8 ------- Run | Scr Mat Min Mat Mat Slots Evolved 4 | . . . 2 2 Power . | . . . . . Propulsion 1 | . . . . 1 Utility 3 | . . . 2 1 Weapon . | . . . . . Parts Attached 30 | 6 1 . 8 15 Power 4 | 1 . . 1 2 Engine 2 | 1 . . 1 . Core 2 | . . . . 2 Reactor . | . . . . . Propulsion 10 | 2 . . 3 5 Treads 10 | 2 . . 3 5 Leg . | . . . . . Wheel . | . . . . . Hover . | . . . . . Flight . | . . . . . Utility 7 | 1 1 . 2 3 Device . | . . . . . Storage 2 | 1 . . 1 . Processor 2 | . . . 1 1 Hackware 1 | . . . . 1 Protection 2 | . 1 . . 1 Artifact . | . . . . . Weapon 9 | 2 . . 2 5 Energy Gun 7 | 2 . . 2 3 Energy Cannon . | . . . . . Ballistic Gun . | . . . . . Ballistic Cannon . | . . . . . Launcher . | . . . . . Special Weapon . | . . . . . Impact Weapon . | . . . . . Slashing Weapon 2 | . . . . 2 Piercing Weapon . | . . . . . Special Melee Weapon . | . . . . . Unidentified Prototypes 3 | . . . 2 1 Parts Lost 11 | . . . . 11 Power 1 | . . . . 1 Propulsion 4 | . . . . 4 Utility 2 | . . . . 2 Weapon 4 | . . . . 4 Highest Loss Streak 4 | . . . . 4 To Critical Strikes . | . . . . . Average Slot Usage (%) 89 | . 91 100 78 92 Engine 5 | . 14 14 11 1 Core 4 | . . . . 7 Treads 23 | . 28 28 22 22 Storage 10 | . 14 14 11 9 Processor 11 | . . . 1 17 Hackware 2 | . . . . 3 Protection 12 | . 6 14 11 13 Energy Gun 18 | . 28 28 22 14 Slashing Weapon 1 | . . . . 2 Naked Turns . | . . . . . Heaviest Build 35 | 14 15 15 25 35 Greatest Support 66 | 40 40 40 44 66 Greatest Overweight (x) 6 | . . . . 6 Average Overweight (x) . | . . . . . Largest Inventory Capacity 10 | 8 8 8 10 10 Average Capacity 9 | 6 8 8 9 10 Most Carried 10 | 5 2 2 10 10 Average Carried 6 | 1 1 2 5 7 Final Capacity 10 | 8 8 8 10 10 Final Carried 10 | 1 2 2 10 6 Class Distribution -------------------- 59% | Mutant 40% | Scavenger-Mutant Dominant Class ---------------- Mutant | -10/Materials Mutant | -10/Mines Mutant | -9/Materials Scavenger-Mutant | -8/Materials Resources | -11 -10 -10 -9 -8 ----------- Run | Scr Mat Min Mat Mat Matter Collected 538 | 220 . 41 89 188 Remotely . | . . . . . Salvage Created 1260 | . . . 286 974 Parts 94 | . . . 20 74 Haulers Intercepted 3 | . . . 3 . Recyclers Shooed 4 | . . . 3 1 Parts Field Recycled . | . . . . . Retrieved Matter . | . . . . . Parts Self-Destructed . | . . . . . Prevented . | . . . . . Kills | -11 -10 -10 -9 -8 ------- Run | Scr Mat Min Mat Mat Combat Hostiles Destroyed 22 | . . . 4 18 Melee 1 | . . . . 1 Guns 18 | . . . 4 14 AOE 3 | . . . . 3 Classes Destroyed 10 | . . . 5 5 Worker 1 | . . . . 1 Builder 2 | . . . . 2 Hauler 3 | . . . 3 . Operator 1 | . . . 1 . Watcher 3 | . . . 1 2 Swarmer 5 | . . . 2 3 Grunt 9 | . . . 2 7 Duelist 1 | . . . . 1 Sentry 5 | . . . . 5 Hunter 2 | . . . . 2 Best Kill Streak 6 | . . . 3 6 Combat Bots Only 6 | . . . 2 6 Max Kills in Single Turn 3 | . . . 1 3 Gunslinging . | . . . . . Exploded 2 | . . . . 2 Melee 1 | . . . . 1 Uniques/NPCs Destroyed . | . . . . . Combat | -11 -10 -10 -9 -8 -------- Run | Scr Mat Min Mat Mat Damage Taken 2399 | . 22 92 249 2036 Core 606 | . 10 . 34 562 Absorbed by Shields . | . . . . . Redirected to Shielding 52 | . . 3 12 37 Core Remaining (%) 95 | 100 . 96 91 . Volleys Fired 82 | . 1 4 20 57 Largest 2 | . 2 2 2 2 Hottest 112 | . 100 100 112 112 Shots Fired 150 | . 2 8 40 100 Gun 150 | . 2 8 40 100 Cannon . | . . . . . Launcher . | . . . . . Special . | . . . . . Kinetic . | . . . . . Thermal 111 | . 2 8 40 61 Explosive . | . . . . . Electromagnetic 39 | . . . . 39 Robot Hit Streak 13 | . . 8 7 13 Robot Miss Streak 4 | . . . 4 2 Penetration Max . | . . . . . Secondary Targets 2 | . . . . 2 Max Gunslinging Chain 1 | . . . . 1 Shots Hit Robots 110 | . . 8 22 80 Core Hits 62 | . . 3 13 46 Critical Kills . | . . . . . Critical Parts Destroyed . | . . . . . Critical Strikes 8 | . . . 6 2 Burn 8 | . . . 6 2 Melee Attacks 6 | . . . . 6 Impact . | . . . . . Slashing 6 | . . . . 6 Piercing . | . . . . . Sneak Attacks 3 | . . . . 3 Combat Hostiles . | . . . . . Follow-up Attacks . | . . . . . Damage Inflicted 2356 | . . 102 451 1803 Guns 1848 | . . 102 443 1303 Cannons . | . . . . . Explosions 293 | . . . . 293 Melee 207 | . . . . 207 Ramming 8 | . . . 8 . Kinetic . | . . . . . Thermal 1548 | . . 102 443 1003 Explosive . | . . . . . Electromagnetic 593 | . . . . 593 Impact . | . . . . . Slashing 207 | . . . . 207 Piercing . | . . . . . Highest Corruption 3 | . . . 3 . Average Corruption 2 | . . . 2 . Corruption Purged . | . . . . . Corruption Blocked . | . . . . . Effects 1 | . . . 1 . Heat Flow Errors 1 | . . . 1 . Overload Shots . | . . . . . Overflow Damage 14 | . . . . 14 Projectiles . | . . . . . Explosions 14 | . . . . 14 Melee . | . . . . . Knockbacks . | . . . . . Impact . | . . . . . Kinetic . | . . . . . Secondary . | . . . . . Self-Inflicted Damage 139 | . . . . 139 Shots 4 | . . . . 4 Rammed 1 | . . . 1 . Targets Rammed 1 | . . . 1 . Kicked . | . . . . . Crushed . | . . . . . Highest Temperature 544 | . 39 210 270 544 Average Temperature 141 | . 20 110 64 178 Received Heat Transfer 699 | . . 54 69 576 Effects 15 | . . . . 15 Shutdowns 4 | . . . . 4 Interference 1 | . . . . 1 Matter Decay 1 | . . . . 1 Short Circuit 3 | . . . . 3 Damage (minor) 4 | . . . . 4 Damage (core) 2 | . . . . 2 Siege Activations . | . . . . . Robots Corrupted . | . . . . . Combat Hostiles . | . . . . . Parts Fried 1 | . . . . 1 Impact Corruptions . | . . . . . Robots Melted . | . . . . . Combat Hostiles . | . . . . . Parts Melted 10 | . . . 6 4 Heat Transferred 3928 | . . 296 1480 2152 Parts Sabotaged . | . . . . . Parts Stolen . | . . . . . Parts Stripped . | . . . . . Power Chain Reactions 4 | . . . . 4 Missiles Intercepted . | . . . . . Alert | -11 -10 -10 -9 -8 ------- Run | Scr Mat Min Mat Mat Peak Influence 612 | . . . 612 413 Initial 173 | . . . . 173 Average 267 | . . . 348 301 Maximum Alert Level 2 | . . . 2 2 Low Security (%) 29 | 100 100 100 19 15 Level 1 50 | . . . 42 66 Level 2 19 | . . . 37 17 Level 3 . | . . . . . Level 4 . | . . . . . Level 5 . | . . . . . High Security . | . . . . . Max Security . | . . . . . Squads Dispatched 9 | . . . 3 6 Investigation 3 | . . . 1 2 Extermination . | . . . . . Reinforcement 5 | . . . 1 4 Assault 1 | . . . 1 . Garrison . | . . . . . Intercept . | . . . . . Searches Triggered . | . . . . . Construction Impeded 2 | . . . . 2 Haulers Reinforced . | . . . . . Active Scanning Responses . | . . . . . Cargo Convoy Interrupts . | . . . . . Stealth | -11 -10 -10 -9 -8 --------- Run | Scr Mat Min Mat Mat Distress Signals 2 | . . . . 2 Communications Jammed . | . . . . . Distress Signals . | . . . . . Times Spotted 59 | . 4 3 20 32 Peak Tracking Total 7 | . 6 3 4 7 Tactical Retreats 4 | . . . 1 3 Traps | -11 -10 -10 -9 -8 ------- Run | Scr Mat Min Mat Mat Traps Triggered 2 | . . . 2 . Indirectly . | . . . . . Trap Hack Attempts . | . . . . . Triggered . | . . . . . Disarmed . | . . . . . Reprogrammed . | . . . . . Reused . | . . . . . Traps Extracted . | . . . . . Installed . | . . . . . Triggered . | . . . . . Machines | -11 -10 -10 -9 -8 ---------- Run | Scr Mat Min Mat Mat Machines Disabled 1 | . . . 1 . Max in Single Turn . | . . . . . Machines Sabotaged . | . . . . . Garrisons Compromised . | . . . . . Overloaded Fab Kills . | . . . . . Hacking | -11 -10 -10 -9 -8 --------- Run | Scr Mat Min Mat Mat Machines Accessed 5 | . . . 2 3 Terminals 5 | . . . 2 3 Fabricators . | . . . . . Repair Stations . | . . . . . Recycling Units . | . . . . . Scanalyzers . | . . . . . Garrison Access . | . . . . . Total Hacks 14 | . . . 7 7 Successful 5 | . . . 2 3 Failed 9 | . . . 5 4 Catastrophic 2 | . . . . 2 Database Lockouts . | . . . . . Manual 7 | . . . 2 5 Terminals 14 | . . . 7 7 Fabricators . | . . . . . Repair Stations . | . . . . . Recycling Units . | . . . . . Scanalyzers . | . . . . . Garrison Access . | . . . . . Terminal Hacks 3 | . . . 1 2 Record 1 | . . . . 1 Zone Layout 2 | . . . 1 1 Fabricator Hacks . | . . . . . Repair Station Hacks . | . . . . . Recycling Unit Hacks . | . . . . . Scanalyzer . | . . . . . Garrison Access Hacks . | . . . . . Unauthorized Hacks 2 | . . . 1 1 Terminals 2 | . . . 1 1 Botnet 2 | . . . 1 1 Fabricators . | . . . . . Repair Stations . | . . . . . Recycling Units . | . . . . . Scanalyzers . | . . . . . Garrison Access . | . . . . . Data Cores Recovered . | . . . . . Used . | . . . . . Hacking Detections 5 | . . . 2 3 Full Trace Events 4 | . . . 2 2 Feedback Events . | . . . . . Feedback Blocked . | . . . . . Robot Schematics Acquired . | . . . . . Robots Built . | . . . . . Authchips . | . . . . . Time . | . . . . . Total Robot Build Rating . | . . . . . Part Schematics Acquired . | . . . . . Parts Built . | . . . . . Authchips . | . . . . . Time . | . . . . . Total Part Build Rating . | . . . . . Parts Repaired . | . . . . . Time . | . . . . . Parts Recycled . | . . . . . Recycled Matter . | . . . . . Retrieved Matter . | . . . . . Retrieved Components . | . . . . . Parts Scanalyzed . | . . . . . Part Schematics Acquired . | . . . . . Parts Damaged . | . . . . . Bothacking | -11 -10 -10 -9 -8 ------------ Run | Scr Mat Min Mat Mat Used RIF Installer . | . . . . . Robots Hacked . | . . . . . Non-combat . | . . . . . Combat . | . . . . . Robot Hacks Applied . | . . . . . Relay Couplers Released . | . . . . . Fabnet Peak Effective % . | . . . . . Robots Rewired . | . . . . . Allies Hacked . | . . . . . Hacks Repelled . | . . . . . Allies | -11 -10 -10 -9 -8 -------- Run | Scr Mat Min Mat Mat Total Allies 4 | . . 4 . . Largest Group 4 | . . 4 4 1 Highest-Rated Group 71 | . . 71 71 31 Highest-Rated Ally 31 | . . 31 31 31 Total Orders . | . . . . . Ally Attacks 56 | . . . 55 1 Total Damage 746 | . . . 725 21 Kills 17 | . . . 17 . Allies Corrupted . | . . . . . Allies Melted . | . . . . . Intel | -11 -10 -10 -9 -8 ------- Run | Scr Mat Min Mat Mat Robot Analysis Total . | . . . . . Derelict Logs Recovered . | . . . . . Drone Launches . | . . . . . Drone Recoveries . | . . . . . Exploration | -11 -10 -10 -9 -8 ------------- Run | Scr Mat Min Mat Mat Turns Passed 1756 | 58 136 74 447 1041 Spaces Moved 865 | 41 77 39 224 484 Core 19 | 17 . . . 2 Treads 846 | 24 77 39 224 482 Legs . | . . . . . Wheels . | . . . . . Hover . | . . . . . Flight . | . . . . . Fastest Speed 50 | 50 160 160 145 145 Average Speed 154 | 114 160 160 156 154 Slowest Speed 350 | 160 160 160 160 350 Overloaded Moves . | . . . . . Propulsion Burnouts . | . . . . . Robots Hopped . | . . . . . Cave-ins Triggered . | . . . . . Exploration Rate (%) 20 | 3 22 15 26 35 Regions Visited 4 Branch Regions 1 Pre-discovered Areas 1 | . . 1 . . Known Exits Taken . | . . . . . Unknown Exits Taken 4 | 1 1 1 1 . Scrap Searched . | . . . . . Spaces Dug 2 | . . . . 2 Terrain Destroyed 18 | . . . . 18 Melee 2 | . . . . 2 Projectile . | . . . . . AOE 16 | . . . . 16 Terrain Rammed . | . . . . . Walls Destroyed . | . . . . . Machines Disabled . | . . . . . Actions | -11 -10 -10 -9 -8 --------- Run | Scr Mat Min Mat Mat Total 1126 | 52 88 43 277 666 Wait 106 | . 8 1 11 86 Move 861 | 40 76 38 223 484 Hop . | . . . . . Pick Up 29 | 6 2 . 11 10 Fast Attach 3 | 1 . . 1 1 Attach 14 | 5 1 . . 8 Detach . | . . . . . Swap 13 | . . . 7 6 Drop 10 | . . . 3 7 Fire 82 | . 1 4 20 57 Melee 6 | . . . . 6 Ram . | . . . . . Kick . | . . . . . Crush 1 | . . . 1 . Escape Stasis . | . . . . . Rewire 1 | . . . . 1 Trap . | . . . . . Miscellaneous . | . . . . . Route ------- -11/Scrapyard -10/Materials -10/Mines -9/Materials (discovered 2 exits: *Mat / [*Min]) -8/Materials History --------- Turn | Location | Event 9 | -11/Scrapyard | Discovered new exit (range 13) 59 | -11/Scrapyard | Entered Materials 143 | -10/Materials | Discovered new exit (range 13) 195 | -10/Materials | Entered Mines 196 | -10/Mines | Met a Derelict bent on vengeance 208 | -10/Mines | Escorted by a lone wolf Derelict 228 | -10/Mines | Learned location of Storage (-9) 242 | -10/Mines | Discovered new exit (range 6) 260 | -10/Mines | Assisted by bots powering up and referring to "LRC-V3" 269 | -10/Mines | Entered Materials 269 | -9/Materials | Accompanied by 4 allies 269 | -9/Materials | Evolved 2 slots: Utility x2 304 | -9/Materials | Build established: Mutant 418 | -9/Materials | Discovered new exit (range 8) 669 | -9/Materials | First assault squad dispatched 698 | -9/Materials | Discovered new exit (range 14) 716 | -9/Materials | Entered another Materials area 716 | -8/Materials | Accompanied by 1 ally 716 | -8/Materials | Evolved 2 slots: Propulsion x1, Utility x1 1215 | -8/Materials | Build established: Scavenger-Mutant 1352 | -8/Materials | Core integrity fell below 50% 1385 | -8/Materials | Lost 4 parts (2n1u1w) 1722 | -8/Materials | Lost 3 parts (1n1u1w) 1752 | -8/Materials | Core integrity fell below 20% 1757 | -8/Materials | Destroyed by X-62 Marksman with Pulse Rifle Last Messages --------------- area. 01701_ Heat Sink fried. 01701_ Y-45 Defender destroyed. 01725_ Slug penetrates Wall. 01725_ Imp. EM Shotgun destroyed. 01738_ Penetrated by Slug. 01738_ K-01 Serf destroyed. 01741_ U-05 Engineer lays Concrete. 01743_ K-01 Serf collects debris. 01744_ U-05 Engineer lays Concrete. 01746_ K-01 Serf collects debris. 01748_ U-05 Engineer lays Concrete. 01749_ K-01 Serf collects debris. 01750_ U-05 Engineer lays Concrete. 01751_ Penetrated by Slug. 01753_ U-05 Engineer lays Concrete. 01754_ Lgt. Nuclear Core destroyed. 01754_ Lgt. Treads destroyed. 01757_ Penetrated by Slug. 01757_ Critical hit (Burn: +37). Map ----- +----------------------------------------------------+ | ?????????????????????????????????????????????????? | | ?????????????????????????????????????????????????? | | ?????????????????????????????????????????????????? | | ?????????????????????????????????????????????????? | | ?????????????????????????????????????????????????? | | ?????????????????????????????????????????????????? | | ?????????????????????????????????????????????????? | | ?????????????????????????????????????????????????? | | ?????????????????????????????????????????????????? | | ?????????????????????????????????????????????????? | | ?????????????????????????????????????????????????? | | ?????????????????????????????????????????????????? | | ?????????????????????????????????????????????????? | | ?????????????????????????????????????????????????? | | ?????????????????????????????????????????????????? | | ?????????????????????????????????????????????????? | | ?????????????????????????????????????????????????? | | ???????????????????????????????????????#?????????? | | ?????????????????????????????????????? #?????????? | | ?????????????????????????????????????? #?????????? | | ????????????????????????????????????? #?????????? | | ????????????????????????????????????? #?????????? | | ????????????????#######????????????? #?????????? | | ????????????????# ############## #??? *????? | | ????????????????# [ g u # *????? | | ????????????????# x @ %=%=g + ???????? | | ????????????????# x =%[% a #?????????? | | ????????????????# #########=u ### ##???????### | | ????????????????## ### [=" #????????????# | | ?????????????????# = #?# # #????????????# | | ?????????????????# %*#?#= !! # #????????????# | | ?????????????????# #?# !! # #???????????## | | ?????????????????# #?# ! # #???????????#" | | ?????????????????# #?# # #???????????#"## | | ????????????#/#### ######/### #???????????# | | ???? #???????????# | | ???? #???????????# | | ???? #???????????# | | ####################+########## + ?????????# | | #?????????????????????????# # [ #????# | | """#?????????????????????????# #? #????#### | | """#?????????????????????????# ################ | | """#?????????????????????????# | | ######????????????????????# | | ###### !!#????????????????????# ################ | | !!#????????????????????# #??????######### | | ===#??????????########### #??????# # | | #### *===#??????????# # #??????# # | | ???# !!#??????????# # #??????# # | | ???# !#??????????# # #??????# + | +----------------------------------------------------+ Best States ------------- Heat Dissipation 31 Energy Generation 14 Energy Capacity 280 Matter Stores 300 Matter Capacity 300 Sight Range 18 Terrain Scan Density 10 Armor Coverage 150 Resistance: KI 20 Power Shielding 33 Evasion (%) 50 Recoil Reduction 3 Defensive Hacking 10 Item Schematics ----------------- None Robot Schematics ------------------ None Fabricated ------------ Nothing Alien Tech Used ----------------- None Achievements -------------- None Challenges ------------ None Game ------ Seed ActiveShadeDesublimator Manual? 0 Play Time 00:24:43 Cumulative 33.8 hours Start 2022.05.08 @ 14:27:56 End 2022.05.08 @ 14:55:46 Sessions 1 Manual Loads 0 Difficulty Rogue Special Mode None Game No. 75 Rogue 75 Adventurer 0 Explorer 0 Win Type - Total 0 Types 0/0/0/0/0/0/0/0/0 Lore% 24 Gallery% 23 Achievement% 22 Wizard Run 0 Options --------- ASCII 0 Keyboard 0 Movement Mouse Keybinds 0 Fullscreen 1 Font 12/Smallcaps Map View 83x54 Tactical HUD 1 Map Filters NONE Filters NONE Steam 1 RUN: e333aee2-0ae4-4992-82cb-1901521be2f1